[Event "HUN-ch U8-U18 2019"]
[Site "Balatonlelle"]
[Date "2019.06.21"]
[Round "1.5"]
[White "Fodor, Kornel"]
[Black "Kovacsy, Barnabas"]
[Result "1/2-1/2"]
[ECO "B23"]
[WhiteElo "1926"]
[BlackElo "2136"]
[Annotator "NA"]
[PlyCount "53"]
[EventDate "2019.06.21"]
[EventType "swiss"]
[EventCountry "HUN"]
[SourceTitle "playchess.com"]
[Source "ChessBase"]
[SourceQuality "1"]
[TimeControl "40/5400+30:1800+30"]

1. e4 {[%emt 0:00:01]} c5 {[%emt 0:00:05]} 2. Nc3 {[%emt 0:00:05]} Nc6 {[%emt 0:00:07]} 3. f4 {[%emt 0:00:10]} g6 {[%emt 0:00:15]} 4. Nf3 {[%emt 0:00:07]} Bg7 {[%emt 0:00:42]} 5. Bc4 {[%emt 0:00:10]} e6 {[%emt 0:00:37]} 6. f5 {[%emt 0:00:12]} Nge7 {[%emt 0:00:38]} 7. fxe6 {[%emt 0:00:35]} fxe6 {[%emt 0:00:24]} 8. d3 {[%emt 0:00:17]} O-O {[%emt 0:09:10]} 9. O-O {[%emt 0:00:54]} d5 {[%emt 0:13:05]} 10. Bb3 {[%emt 0:00:56]} Nd4 {[%emt 0:15:09]} 11. Nxd4 {[%emt 0:08:04]} cxd4 {[%emt 0:01:06]} 12. Rxf8+ {[%emt 0:04:58]} Bxf8 {[%emt 0:11:09]} 13. Ne2 {[%emt 0:00:29]} Bg7 {[%emt 0:14:42]} 14. Bg5 {[%emt 0:08:39]} dxe4 {[%emt 0:07:12]} 15. dxe4 {[%emt 0:00:25]} Kh8 {[%emt 0:05:46]} 16. Nf4 {[%emt 0:07:17]} Qd6 {[%emt 0:03:19]} 17. Nd3 {[%emt 0:21:35]} Nc6 {[%emt 0:03:28]} 18. Qd2 {[%emt 0:03:58]} Bd7 {[%emt 0:03:09]} 19. Rf1 {[%emt 0:01:13]} Rf8 {[%emt 0:00:53]} 20. Rxf8+ {[%emt 0:03:49]} Qxf8 {[%emt 0:00:07]} 21. Qf4 {[%emt 0:02:35]} Qxf4 {[%emt 0:01:14]} 22. Bxf4 {[%emt 0:00:06]} b6 {[%emt 0:00:23]} 23. a3 {[%emt 0:04:01]} Kg8 {[%emt 0:01:21]} 24. Kf2 {[%emt 0:05:00]} Kf7 {[%emt 0:01:19]} 25. Kf3 {[%emt 0:03:46]} h6 {[%emt 0:03:14]} 26. h4 {[%emt 0:06:16]} Ke7 {[%emt 0:03:00]} 27. Bd2 {[%emt 0:02:50]} 1/2-1/2

[Event "HUN-ch U8-U18 2019"]
[Site "Balatonlelle"]
[Date "2019.06.21"]
[Round "1.5"]
[White "Farkas, Otto Jr."]
[Black "Szabo, Bence Andreas"]
[Result "1-0"]
[ECO "C14"]
[WhiteElo "1859"]
[BlackElo "1447"]
[Annotator "NA"]
[PlyCount "83"]
[EventDate "2019.06.21"]
[EventType "swiss"]
[EventCountry "HUN"]
[SourceTitle "playchess.com"]
[Source "ChessBase"]
[SourceQuality "1"]
[TimeControl "40/5400+30:1800+30"]

1. e4 {[%emt 0:00:04]} e6 {[%emt 0:00:10]} 2. d4 {[%emt 0:00:05]} d5 {[%emt 0:00:07]} 3. Nc3 {[%emt 0:00:09]} Nf6 {[%emt 0:00:19]} 4. Bg5 {[%emt 0:00:19]} Be7 {[%emt 0:00:45]} 5. e5 {[%emt 0:00:15]} Nfd7 {[%emt 0:00:21]} 6. Bxe7 {[%emt 0:00:08]} Qxe7 {[%emt 0:00:09]} 7. f4 {[%emt 0:01:32]} c5 {[%emt 0:01:04]} 8. Nb5 {[%emt 0:00:47]} Nb6 {[%emt 0:07:23]} 9. Nd6+ {[%emt 0:00:22]} Kf8 {[%emt 0:01:32]} 10. dxc5 {[%emt 0:00:23]} N6d7 {[%emt 0:08:06]} 11. Nxc8 {[%emt 0:02:27]} Qxc5 {[%emt 0:01:22]} 12. Nd6 {[%emt 0:01:37]} Qb4+ {[%emt 0:04:28]} 13. Qd2 {[%emt 0:00:14]} Qxb2 {[%emt 0:02:57]} 14. Rd1 {[%emt 0:00:50]} Nc6 {[%emt 0:03:23]} 15. c3 {[%emt 0:00:41]} Qxd2+ {[%emt 0:05:49]} 16. Rxd2 {[%emt 0:01:18]} Rb8 {[%emt 0:02:22]} 17. c4 {[%emt 0:01:25]} Nb6 {[%emt 0:04:30]} 18. Nf3 {[%emt 0:01:09]} h6 {[%emt 0:03:50]} 19. Be2 {[%emt 0:01:44]} a6 {[%emt 0:01:37]} 20. O-O {[%emt 0:01:21]} Nc8 {[%emt 0:02:06]} 21. cxd5 {[%emt 0:00:46]} Nxd6 {[%emt 0:01:19]} 22. exd6 {[%emt 0:00:15]} Nb4 {[%emt 0:01:22]} 23. dxe6 {[%emt 0:00:27]} fxe6 {[%emt 0:00:42]} 24. Ne5 {[%emt 0:00:15]} Rd8 {[%emt 0:01:57]} 25. Ng6+ {[%emt 0:00:18]} Kf7 {[%emt 0:00:49]} 26. Nxh8+ {[%emt 0:00:08]} Rxh8 {[%emt 0:00:25]} 27. Rb1 {[%emt 0:00:10]} Nd5 {[%emt 0:01:07]} 28. Rxb7+ {[%emt 0:00:19]} Kf6 {[%emt 0:00:32]} 29. Bf3 {[%emt 0:00:43]} Rd8 {[%emt 0:00:42]} 30. d7 {[%emt 0:00:41]} Ke7 {[%emt 0:00:35]} 31. Bxd5 {[%emt 0:00:09]} Rxd7 {[%emt 0:00:39]} 32. Rxd7+ {[%emt 0:00:07]} Kxd7 {[%emt 0:00:11]} 33. Bb7+ {[%emt 0:00:06]} Kc7 {[%emt 0:00:25]} 34. Bxa6 {[%emt 0:00:08]} Kb6 {[%emt 0:00:30]} 35. Bc4 {[%emt 0:00:21]} Kc5 {[%emt 0:00:15]} 36. Bxe6 {[%emt 0:00:10]} g5 {[%emt 0:00:16]} 37. f5 {[%emt 0:00:06]} Kc6 {[%emt 0:00:11]} 38. f6 {[%emt 0:00:08]} Kc7 {[%emt 0:00:12]} 39. f7 {[%emt 0:00:06]} Kb7 {[%emt 0:00:20]} 40. f8=Q {[%emt 0:00:00]} Ka7 {[%emt 0:00:00]} 41. Rb2 {[%emt 0:00:46]} Ka6 {[%emt 0:00:26]} 42. Qa3# {[%emt 0:00:07]} 1-0

[Event "HUN-ch U8-U18 2019"]
[Site "Balatonlelle"]
[Date "2019.06.21"]
[Round "1.6"]
[White "Leszko, Bence"]
[Black "Follardt, Lorinc"]
[Result "1-0"]
[ECO "A05"]
[WhiteElo "2135"]
[BlackElo "1913"]
[Annotator "NA"]
[PlyCount "93"]
[EventDate "2019.06.21"]
[EventType "swiss"]
[EventCountry "HUN"]
[SourceTitle "playchess.com"]
[Source "ChessBase"]
[SourceQuality "1"]
[TimeControl "40/5400+30:1800+30"]

1. Nf3 {[%emt 0:00:19]} Nf6 {[%emt 0:00:57]} 2. g3 {[%emt 0:00:07]} g6 {[%emt 0:00:05]} 3. b3 {[%emt 0:00:05]} Bg7 {[%emt 0:00:07]} 4. Bb2 {[%emt 0:00:06]} b6 {[%emt 0:04:14]} 5. Bg2 {[%emt 0:00:15]} Bb7 {[%emt 0:00:03]} 6. O-O {[%emt 0:00:09]} O-O {[%emt 0:00:41]} 7. c4 {[%emt 0:00:25]} d6 {[%emt 0:11:14]} 8. e3 {[%emt 0:03:20]} Nbd7 {[%emt 0:09:11]} 9. Nc3 {[%emt 0:01:06]} Rb8 {[%emt 0:10:09]} 10. Qc2 {[%emt 0:00:35]} e5 {[%emt 0:01:10]} 11. d4 {[%emt 0:00:09]} Re8 {[%emt 0:03:02]} 12. Rfd1 {[%emt 0:01:30]} exd4 {[%emt 0:03:57]} 13. exd4 {[%emt 0:00:18]} Ne4 {[%emt 0:01:12]} 14. Re1 {[%emt 0:06:28]} Ndf6 {[%emt 0:08:47]} 15. d5 {[%emt 0:00:16]} Nxc3 {[%emt 0:01:01]} 16. Bxc3 {[%emt 0:00:08]} Qd7 {[%emt 0:02:19]} 17. Qb2 {[%emt 0:03:24]} Nh5 {[%emt 0:02:04]} 18. Bxg7 {[%emt 0:00:15]} Nxg7 {[%emt 0:00:09]} 19. Ng5 {[%emt 0:02:07]} Rxe1+ {[%emt 0:07:23]} 20. Rxe1 {[%emt 0:00:03]} Re8 {[%emt 0:00:07]} 21. Rxe8+ {[%emt 0:08:08]} Nxe8 {[%emt 0:02:57]} 22. Qe2 {[%emt 0:01:04]} Nf6 {[%emt 0:05:18]} 23. Bh3 {[%emt 0:02:17]} Qe8 {[%emt 0:01:09]} 24. Qxe8+ {[%emt 0:01:35]} Nxe8 {[%emt 0:00:05]} 25. Nf3 {[%emt 0:00:25]} Nf6 {[%emt 0:05:06]} 26. Nd4 {[%emt 0:00:13]} a6 {[%emt 0:00:49]} 27. f3 {[%emt 0:00:14]} Kf8 {[%emt 0:01:55]} 28. Kf2 {[%emt 0:00:21]} Ke7 {[%emt 0:03:32]} 29. Ke3 {[%emt 0:00:13]} Nd7 {[%emt 0:01:07]} 30. Bxd7 {[%emt 0:06:00]} Kxd7 {[%emt 0:00:20]} 31. g4 {[%emt 0:00:19]} h6 {[%emt 0:04:35]} 32. Ke4 {[%emt 0:01:42]} c6 {[%emt 0:05:49]} 33. h4 {[%emt 0:01:51]} b5 {[%emt 0:02:05]} 34. dxc6+ {[%emt 0:13:29]} Bxc6+ {[%emt 0:00:05]} 35. Nxc6 {[%emt 0:00:06]} Kxc6 {[%emt 0:00:07]} 36. cxb5+ {[%emt 0:00:03]} Kxb5 {[%emt 0:02:07]} 37. a3 {[%emt 0:18:10]} Kc5 {[%emt 0:00:30]} 38. Kd3 {[%emt 0:00:01]} a5 {[%emt 0:01:38]} 39. Kc3 {[%emt 0:00:00]} Kd5 {[%emt 0:00:00]} 40. b4 {[%emt 0:00:00]} axb4+ {[%emt 0:00:00]} 41. Kxb4 {[%emt 0:11:40]} Ke5 {[%emt 0:26:52]} 42. a4 {[%emt 0:00:17]} Kf4 {[%emt 0:02:57]} 43. a5 {[%emt 0:00:32]} Kxf3 {[%emt 0:00:04]} 44. a6 {[%emt 0:00:04]} Kxg4 {[%emt 0:00:10]} 45. a7 {[%emt 0:00:04]} Kxh4 {[%emt 0:00:11]} 46. a8=Q {[%emt 0:00:04]} f5 {[%emt 0:01:04]} 47. Qd8+ {[%emt 0:00:21]} 1-0

[Event "HUN-ch U8-U18 2019"]
[Site "Balatonlelle"]
[Date "2019.06.21"]
[Round "1.6"]
[White "Broderick, Tamas"]
[Black "Pater, Peter"]
[Result "1/2-1/2"]
[ECO "A45"]
[WhiteElo "1511"]
[BlackElo "1901"]
[Annotator "NA"]
[PlyCount "60"]
[EventDate "2019.06.21"]
[EventType "swiss"]
[EventCountry "HUN"]
[SourceTitle "playchess.com"]
[Source "ChessBase"]
[SourceQuality "1"]
[TimeControl "40/5400+30:1800+30"]

1. d4 {[%emt 0:00:03]} Nf6 {[%emt 0:00:12]} 2. Bf4 {[%emt 0:00:29]} d6 {[%emt 0:00:15]} 3. e3 {[%emt 0:00:22]} Nbd7 {[%emt 0:01:07]} 4. Nf3 {[%emt 0:00:45]} g6 {[%emt 0:00:19]} 5. Be2 {[%emt 0:03:12]} Bg7 {[%emt 0:01:06]} 6. h3 {[%emt 0:00:50]} O-O {[%emt 0:00:18]} 7. O-O {[%emt 0:01:07]} c6 {[%emt 0:10:09]} 8. c3 {[%emt 0:08:05]} Qc7 {[%emt 0:12:20]} 9. Nbd2 {[%emt 0:05:30]} e5 {[%emt 0:01:56]} 10. Bh2 {[%emt 0:00:44]} Ne8 {[%emt 0:10:10]} 11. dxe5 {[%emt 0:15:43]} dxe5 {[%emt 0:00:31]} 12. Bc4 {[%emt 0:00:42]} h6 {[%emt 0:06:48]} 13. Qc2 {[%emt 0:09:59]} b5 {[%emt 0:01:16]} 14. Be2 {[%emt 0:01:50]} Kh7 {[%emt 0:11:56]} 15. a4 {[%emt 0:06:15]} Qb6 {[%emt 0:07:19]} 16. axb5 {[%emt 0:01:00]} cxb5 {[%emt 0:00:08]} 17. Qb3 {[%emt 0:06:38]} Nc7 {[%emt 0:02:59]} 18. Rfd1 {[%emt 0:08:00]} Bb7 {[%emt 0:09:57]} 19. Ne4 {[%emt 0:10:48]} Bxe4 {[%emt 0:13:34]} 20. Rxd7 {[%emt 0:00:20]} Bf5 {[%emt 0:00:27]} 21. Rd2 {[%emt 0:02:16]} Be6 {[%emt 0:03:15]} 22. Qc2 {[%emt 0:00:12]} Nd5 {[%emt 0:01:30]} 23. Rad1 {[%emt 0:05:51]} Rad8 {[%emt 0:01:47]} 24. e4 {[%emt 0:01:46]} Nf4 {[%emt 0:00:51]} 25. Bxf4 {[%emt 0:01:35]} exf4 {[%emt 0:00:06]} 26. Rxd8 {[%emt 0:00:09]} Rxd8 {[%emt 0:00:16]} 27. Rxd8 {[%emt 0:00:03]} Qxd8 {[%emt 0:00:07]} 28. Bxb5 {[%emt 0:01:31]} Qb6 {[%emt 0:01:52]} 29. Bd3 {[%emt 0:01:58]} Bb3 {[%emt 0:00:27]} 30. Qd2 Qd8 1/2-1/2

[Event "HUN-ch U8-U18 2019"]
[Site "Balatonlelle"]
[Date "2019.06.21"]
[Round "1.7"]
[White "Forgacs, Andras"]
[Black "Ongut, Tamas Gunes"]
[Result "0-1"]
[ECO "E61"]
[WhiteElo "1873"]
[BlackElo "2120"]
[Annotator "NA"]
[PlyCount "36"]
[EventDate "2019.06.21"]
[EventType "swiss"]
[EventCountry "HUN"]
[SourceTitle "playchess.com"]
[Source "ChessBase"]
[SourceQuality "1"]
[TimeControl "40/5400+30:1800+30"]

1. d4 {[%emt 0:00:16]} Nf6 {[%emt 0:00:24]} 2. c4 {[%emt 0:00:40]} g6 {[%emt 0:01:07]} 3. Nc3 {[%emt 0:00:59]} c5 {[%emt 0:01:56]} 4. Nf3 {[%emt 0:04:57]} Bg7 {[%emt 0:00:32]} 5. e4 {[%emt 0:02:42]} O-O {[%emt 0:00:47]} 6. Be2 {[%emt 0:14:36]} cxd4 {[%emt 0:01:45]} 7. Nxd4 {[%emt 0:00:08]} d6 {[%emt 0:00:03]} 8. Be3 {[%emt 0:01:01]} Nc6 {[%emt 0:00:19]} 9. Qd2 {[%emt 0:00:49]} Bd7 {[%emt 0:02:36]} 10. O-O {[%emt 0:05:56]} Rc8 {[%emt 0:00:30]} 11. Rac1 {[%emt 0:00:36]} Ng4 {[%emt 0:09:42]} 12. Bxg4 {[%emt 0:02:14]} Bxg4 {[%emt 0:00:08]} 13. Nd5 {[%emt 0:01:11]} Bd7 {[%emt 0:02:23]} 14. b3 {[%emt 0:09:51]} e6 {[%emt 0:09:13]} 15. Nc3 {[%emt 0:01:23]} a6 {[%emt 0:04:18]} 16. Nde2 {[%emt 0:00:58]} Qa5 {[%emt 0:16:10]} 17. Qxd6 {[%emt 0:04:01]} Rfd8 {[%emt 0:00:09]} 18. Bg5 {[%emt 0:01:10]} Qxg5 {[%emt 0:00:03]} 0-1

[Event "HUN-ch U8-U18 2019"]
[Site "Balatonlelle"]
[Date "2019.06.21"]
[Round "1.7"]
[White "Onodi, Tamas"]
[Black "Borhy, Marcell"]
[Result "0-1"]
[ECO "D00"]
[WhiteElo "1684"]
[BlackElo "2374"]
[Annotator "NA"]
[PlyCount "60"]
[EventDate "2019.06.21"]
[EventType "swiss"]
[EventCountry "HUN"]
[SourceTitle "playchess.com"]
[Source "ChessBase"]
[SourceQuality "1"]
[TimeControl "40/5400+30:1800+30"]

1. d4 {[%emt 0:00:03]} d5 2. Bf4 c5 3. e3 Nc6 4. Nf3 Nf6 5. c3 Qb6 6. Qc2 g6 7. Nbd2 Bf5 8. dxc5 Qxc5 9. Qb3 Na5 10. Qb5+ Qxb5 11. Bxb5+ Bd7 12. Bxd7+ Nxd7 13. O-O Bg7 14. Rfe1 O-O 15. e4 e5 16. Bg3 dxe4 17. Rxe4 f5 18. Re2 Nc6 19. Nc4 f4 20. Bh4 h6 21. Rd1 Nb6 22. Nxb6 axb6 23. Rd7 Rf7 24. Rxf7 Kxf7 25. b3 Re8 26. g4 e4 27. Nd2 g5 28. Nxe4 Kg6 29. Bxg5 hxg5 30. f3 Rd8 0-1

[Event "HUN-ch U8-U18 2019"]
[Site "Balatonlelle"]
[Date "2019.06.21"]
[Round "1.8"]
[White "Pasztor, Balazs"]
[Black "Kovacs, Laszlo Jr."]
[Result "1-0"]
[ECO "C42"]
[WhiteElo "2215"]
[BlackElo "2101"]
[Annotator "NA"]
[PlyCount "51"]
[EventDate "2019.06.21"]
[EventType "swiss"]
[EventCountry "HUN"]
[SourceTitle "playchess.com"]
[Source "ChessBase"]
[SourceQuality "1"]
[TimeControl "40/5400+30:1800+30"]

1. e4 {[%emt 0:00:13]} e5 {[%emt 0:00:04]} 2. Nf3 {[%emt 0:00:19]} Nf6 {[%emt 0:00:11]} 3. Nxe5 {[%emt 0:00:38]} d6 {[%emt 0:00:06]} 4. Nf3 {[%emt 0:00:15]} Nxe4 {[%emt 0:00:06]} 5. d4 {[%emt 0:02:55]} d5 {[%emt 0:02:16]} 6. Bd3 {[%emt 0:00:17]} Nd7 {[%emt 0:15:43]} 7. O-O {[%emt 0:02:16]} Bd6 {[%emt 0:00:16]} 8. c4 {[%emt 0:01:55]} c6 {[%emt 0:04:49]} 9. Nc3 {[%emt 0:07:03]} Nxc3 {[%emt 0:04:59]} 10. bxc3 {[%emt 0:00:12]} dxc4 {[%emt 0:00:22]} 11. Re1+ {[%emt 0:03:10]} Be7 {[%emt 0:02:41]} 12. Ba3 {[%emt 0:04:03]} c5 {[%emt 0:01:55]} 13. Bxc4 {[%emt 0:02:44]} O-O {[%emt 0:00:33]} 14. Qb3 {[%emt 0:06:42]} b6 {[%emt 0:04:01]} 15. Bd5 {[%emt 0:03:13]} Rb8 {[%emt 0:00:24]} 16. Rad1 {[%emt 0:01:41]} Ba6 {[%emt 0:02:51]} 17. Bc6 {[%emt 0:06:18]} Bd6 {[%emt 0:03:14]} 18. Ne5 {[%emt 0:12:42]} Nf6 {[%emt 0:02:30]} 19. dxc5 {[%emt 0:01:51]} bxc5 {[%emt 0:00:07]} 20. Qa4 {[%emt 0:01:13]} Qc7 {[%emt 0:01:19]} 21. Qxa6 {[%emt 0:08:24]} Bxe5 {[%emt 0:00:04]} 22. Bxc5 {[%emt 0:01:14]} Rfc8 {[%emt 0:07:16]} 23. Bxa7 {[%emt 0:03:06]} Ra8 {[%emt 0:03:58]} 24. Bxa8 {[%emt 0:03:34]} Rxa8 {[%emt 0:00:07]} 25. g3 {[%emt 0:02:55]} Rxa7 {[%emt 0:00:28]} 26. Qxa7 {[%emt 0:01:05]} 1-0

[Event "HUN-ch U8-U18 2019"]
[Site "Balatonlelle"]
[Date "2019.06.21"]
[Round "1.8"]
[White "Baski, Barnabas"]
[Black "Erseki, Aron"]
[Result "1-0"]
[ECO "A06"]
[WhiteElo "2108"]
[BlackElo "1854"]
[Annotator "NA"]
[PlyCount "97"]
[EventDate "2019.06.21"]
[EventType "swiss"]
[EventCountry "HUN"]
[SourceTitle "playchess.com"]
[Source "ChessBase"]
[SourceQuality "1"]
[TimeControl "40/5400+30:1800+30"]

1. Nf3 {[%emt 0:00:03]} d5 {[%emt 0:00:18]} 2. g3 {[%emt 0:00:12]} e6 {[%emt 0:00:14]} 3. Bg2 {[%emt 0:00:21]} Bd6 {[%emt 0:00:11]} 4. c4 {[%emt 0:01:38]} c6 {[%emt 0:00:21]} 5. cxd5 {[%emt 0:01:21]} exd5 {[%emt 0:02:12]} 6. O-O {[%emt 0:00:57]} Nf6 {[%emt 0:00:29]} 7. d3 {[%emt 0:00:59]} O-O {[%emt 0:00:23]} 8. Nc3 {[%emt 0:00:57]} Bf5 {[%emt 0:02:51]} 9. e4 {[%emt 0:07:25]} dxe4 {[%emt 0:03:10]} 10. Nh4 {[%emt 0:11:22]} Bg4 {[%emt 0:02:50]} 11. Qb3 {[%emt 0:03:12]} Qc7 {[%emt 0:49:45]} 12. dxe4 {[%emt 0:04:13]} Nbd7 {[%emt 0:01:16]} 13. Qc2 {[%emt 0:09:51]} Rad8 {[%emt 0:06:56]} 14. Be3 {[%emt 0:07:10]} Ne5 {[%emt 0:03:49]} 15. h3 {[%emt 0:11:41]} Be6 {[%emt 0:01:24]} 16. b3 {[%emt 0:02:22]} Ng6 {[%emt 0:08:37]} 17. Nxg6 {[%emt 0:02:58]} hxg6 {[%emt 0:00:45]} 18. Rac1 {[%emt 0:04:44]} Qa5 {[%emt 0:02:58]} 19. Ne2 {[%emt 0:03:19]} Qh5 {[%emt 0:01:57]} 20. h4 {[%emt 0:12:54]} Ng4 {[%emt 0:01:34]} 21. Bf4 {[%emt 0:02:06]} Be7 {[%emt 0:01:43]} 22. f3 {[%emt 0:01:54]} Nh6 {[%emt 0:01:30]} 23. Rfd1 {[%emt 0:04:13]} g5 {[%emt 0:00:55]} 24. hxg5 {[%emt 0:00:26]} Bxg5 {[%emt 0:00:32]} 25. Qc5 {[%emt 0:00:36]} f5 {[%emt 0:02:27]} 26. Bxg5 {[%emt 0:04:49]} Qxg5 {[%emt 0:00:14]} 27. e5 {[%emt 0:00:23]} Kh7 {[%emt 0:03:27]} 28. Rd6 {[%emt 0:01:00]} Rxd6 {[%emt 0:00:40]} 29. exd6 {[%emt 0:00:31]} Bd5 {[%emt 0:00:21]} 30. Qf2 {[%emt 0:00:48]} Rd8 {[%emt 0:00:36]} 31. f4 {[%emt 0:00:28]} Qf6 {[%emt 0:00:19]} 32. Bxd5 {[%emt 0:00:20]} cxd5 {[%emt 0:00:02]} 33. Qxa7 {[%emt 0:00:34]} Qb2 {[%emt 0:00:40]} 34. Qe3 {[%emt 0:00:39]} Rxd6 {[%emt 0:00:48]} 35. Rc7 {[%emt 0:00:23]} Ng4 {[%emt 0:00:42]} 36. Qd4 {[%emt 0:00:35]} Qxd4+ {[%emt 0:00:31]} 37. Nxd4 {[%emt 0:00:02]} Kg6 {[%emt 0:00:26]} 38. Rxb7 {[%emt 0:00:50]} Ra6 {[%emt 0:00:21]} 39. a4 {[%emt 0:00:10]} Nf6 {[%emt 0:00:37]} 40. Rb5 {[%emt 0:00:00]} Ra7 {[%emt 0:00:00]} 41. a5 {[%emt 0:07:46]} Rc7 {[%emt 0:02:33]} 42. Rb6 {[%emt 0:06:13]} Rc1+ {[%emt 0:00:41]} 43. Kg2 {[%emt 0:01:19]} Rd1 {[%emt 0:00:13]} 44. Nf3 {[%emt 0:00:45]} Kh5 {[%emt 0:01:33]} 45. Rb4 {[%emt 0:03:54]} Ra1 {[%emt 0:01:35]} 46. Ra4 {[%emt 0:00:46]} Rc1 {[%emt 0:02:28]} 47. Ra2 {[%emt 0:01:03]} Ne4 {[%emt 0:00:42]} 48. a6 {[%emt 0:01:09]} Nc3 {[%emt 0:00:46]} 49. a7 {[%emt 0:01:26]} 1-0

[Event "HUN-ch U8-U18 2019"]
[Site "Balatonlelle"]
[Date "2019.06.21"]
[Round "1.9"]
[White "Lakatos, Tamas"]
[Black "Papp, Bence"]
[Result "0-1"]
[ECO "B01"]
[WhiteElo "1833"]
[BlackElo "2094"]
[Annotator "NA"]
[PlyCount "50"]
[EventDate "2019.06.21"]
[EventType "swiss"]
[EventCountry "HUN"]
[SourceTitle "playchess.com"]
[Source "ChessBase"]
[SourceQuality "1"]
[TimeControl "40/5400+30:1800+30"]

1. e4 {[%emt 0:00:02]} d5 {[%emt 0:00:16]} 2. exd5 {[%emt 0:00:14]} Qxd5 {[%emt 0:00:08]} 3. d4 {[%emt 0:00:11]} Nc6 {[%emt 0:00:06]} 4. Nf3 {[%emt 0:00:23]} Bg4 {[%emt 0:00:08]} 5. Be2 {[%emt 0:00:09]} O-O-O {[%emt 0:00:09]} 6. Be3 {[%emt 0:00:52]} e6 {[%emt 0:09:10]} 7. O-O {[%emt 0:00:23]} Nf6 {[%emt 0:00:41]} 8. c4 {[%emt 0:02:15]} Qf5 {[%emt 0:19:26]} 9. h3 {[%emt 0:05:57]} Bh5 {[%emt 0:02:32]} 10. Qa4 {[%emt 0:10:01]} g5 {[%emt 0:16:27]} 11. d5 {[%emt 0:21:26]} exd5 {[%emt 0:08:55]} 12. cxd5 {[%emt 0:00:44]} Bxf3 {[%emt 0:27:02]} 13. Bxf3 {[%emt 0:00:08]} Ne5 {[%emt 0:00:14]} 14. Qxa7 {[%emt 0:03:30]} Nxf3+ {[%emt 0:00:12]} 15. gxf3 {[%emt 0:00:13]} Bd6 {[%emt 0:01:12]} 16. Bc5 {[%emt 0:02:46]} Qxh3 {[%emt 0:05:35]} 17. Bxd6 {[%emt 0:00:23]} Rxd6 {[%emt 0:00:37]} 18. Qa8+ {[%emt 0:08:38]} Kd7 {[%emt 0:00:27]} 19. Qa4+ {[%emt 0:04:30]} Ke7 {[%emt 0:04:09]} 20. Qc4 {[%emt 0:01:37]} Rc8 {[%emt 0:00:58]} 21. Qe2+ {[%emt 0:01:45]} Kf8 {[%emt 0:00:06]} 22. Nc3 {[%emt 0:00:04]} Re8 {[%emt 0:00:35]} 23. Qd2 {[%emt 0:00:43]} Ng4 {[%emt 0:00:18]} 24. fxg4 {[%emt 0:00:57]} Qxg4+ {[%emt 0:00:08]} 25. Kh1 {[%emt 0:00:03]} Rh6# {[%emt 0:00:08]} 0-1

[Event "HUN-ch U8-U18 2019"]
[Site "Balatonlelle"]
[Date "2019.06.21"]
[Round "1.9"]
[White "Gyurika, Tamas"]
[Black "Pasti, Aron"]
[Result "0-1"]
[ECO "C55"]
[WhiteElo "1643"]
[BlackElo "2193"]
[Annotator "NA"]
[PlyCount "50"]
[EventDate "2019.06.21"]
[EventType "swiss"]
[EventCountry "HUN"]
[SourceTitle "playchess.com"]
[Source "ChessBase"]
[SourceQuality "1"]
[TimeControl "40/5400+30:1800+30"]

1. e4 {[%emt 0:00:04]} e5 {[%emt 0:00:03]} 2. Nf3 {[%emt 0:00:16]} Nc6 {[%emt 0:00:03]} 3. d4 {[%emt 0:00:18]} exd4 {[%emt 0:00:05]} 4. Bc4 {[%emt 0:00:11]} Nf6 {[%emt 0:00:08]} 5. e5 {[%emt 0:00:13]} d5 {[%emt 0:00:04]} 6. Bb5 {[%emt 0:00:12]} Ne4 {[%emt 0:00:05]} 7. Nxd4 {[%emt 0:00:10]} Bc5 {[%emt 0:00:04]} 8. O-O {[%emt 0:01:41]} O-O {[%emt 0:00:09]} 9. Bxc6 {[%emt 0:00:21]} bxc6 {[%emt 0:00:14]} 10. f3 {[%emt 0:02:22]} Ng5 {[%emt 0:02:54]} 11. Nc3 {[%emt 0:03:19]} Ne6 {[%emt 0:03:18]} 12. Be3 {[%emt 0:02:41]} f6 {[%emt 0:03:13]} 13. exf6 {[%emt 0:01:13]} Qxf6 {[%emt 0:00:19]} 14. Nce2 {[%emt 0:02:05]} Ba6 {[%emt 0:00:19]} 15. c3 {[%emt 0:07:26]} Bxe2 {[%emt 0:01:18]} 16. Qxe2 {[%emt 0:00:01]} Nxd4 {[%emt 0:00:25]} 17. Bxd4 {[%emt 0:00:27]} Bxd4+ {[%emt 0:00:04]} 18. cxd4 {[%emt 0:00:12]} Qxd4+ {[%emt 0:00:02]} 19. Kh1 {[%emt 0:00:07]} Rfe8 {[%emt 0:02:16]} 20. Qc2 {[%emt 0:00:13]} Qf6 {[%emt 0:01:43]} 21. Rac1 {[%emt 0:02:43]} Re6 {[%emt 0:00:08]} 22. Qb3 {[%emt 0:00:36]} Rae8 {[%emt 0:05:09]} 23. Qb7 {[%emt 0:01:59]} Qg5 {[%emt 0:14:30]} 24. Qxc7 {[%emt 0:06:41]} Qxc1 {[%emt 0:01:09]} 25. Qb7 Qg5 0-1

[Event "HUN-ch U8-U18 2019"]
[Site "Balatonlelle"]
[Date "2019.06.21"]
[Round "1.10"]
[White "Juhasz, Agoston"]
[Black "Kardos, Levente"]
[Result "1-0"]
[ECO "A00"]
[WhiteElo "2161"]
[BlackElo "1629"]
[Annotator "NA"]
[PlyCount "37"]
[EventDate "2019.06.21"]
[EventType "swiss"]
[EventCountry "HUN"]
[SourceTitle "playchess.com"]
[Source "ChessBase"]
[SourceQuality "1"]
[TimeControl "40/5400+30:1800+30"]

1. Nc3 {[%emt 0:00:20]} e6 {[%emt 0:04:01]} 2. d4 {[%emt 0:00:30]} d5 {[%emt 0:00:43]} 3. Bf4 {[%emt 0:01:10]} Bd6 {[%emt 0:10:35]} 4. Bxd6 {[%emt 0:15:12]} Qxd6 {[%emt 0:04:51]} 5. e4 {[%emt 0:03:47]} Bd7 {[%emt 0:12:52]} 6. Qg4 {[%emt 0:08:42]} g6 {[%emt 0:08:59]} 7. e5 {[%emt 0:03:54]} Qb6 {[%emt 0:01:22]} 8. O-O-O {[%emt 0:02:13]} Ne7 {[%emt 0:03:17]} 9. Qf4 {[%emt 0:06:34]} O-O {[%emt 0:04:57]} 10. Nf3 {[%emt 0:02:39]} a5 {[%emt 0:13:33]} 11. g4 {[%emt 0:03:23]} Na6 {[%emt 0:05:10]} 12. Qh6 {[%emt 0:07:25]} f6 {[%emt 0:05:05]} 13. exf6 {[%emt 0:00:20]} Rxf6 {[%emt 0:00:06]} 14. Ng5 {[%emt 0:01:21]} Rxf2 {[%emt 0:03:55]} 15. Qxh7+ {[%emt 0:00:20]} Kf8 {[%emt 0:00:03]} 16. Bd3 {[%emt 0:07:21]} Nb4 {[%emt 0:00:48]} 17. Qh8+ {[%emt 0:05:11]} Ng8 {[%emt 0:00:00]} 18. Bxg6 {[%emt 0:01:36]} Qa6 {[%emt 0:02:00]} 19. Bh7 {[%emt 0:03:57]} 1-0